bitfinex/quotes_SOLUSD_20250228
["timestamp","ask_amount","ask_price","bid_price","bid_amount"]
[1740780648282,87.7122,147.5,147.45,0.0001]
[1740780649183,82.2884,147.5,147.45,0.0001]
[1740780649564,18.64964886,147.54,147.45,70.31201833]
[1740780649565,80.7,147.53,147.45,70.31201833]
[1740780651081,86.1226,147.53,147.46,5.4252]
[1740780651272,86.1226,147.53,147.45,51.66236947]
[1740780651586,86.1226,147.53,147.45,57.08786947]
[1740780651884,80.7,147.52,147.45,0.0001]
[1740780653864,18.9817,147.51,147.45,0.0001]
[1740780654377,80.7,147.5,147.45,0.0001]
[1740780654767,80.7,147.49,147.45,0.0001]
[1740780654967,80.7,147.48,147.45,0.0001]
[1740780656477,5.4248,147.47,147.45,0.0001]
[1740780659483,86.1248,147.47,147.45,0.0001]
[1740780660389,80.7,147.47,147.45,0.0001]
[1740780661062,86.1249,147.47,147.45,0.0001]
[1740780662776,80.7,147.46,147.45,0.0001]
[1740780662974,5.4249,147.47,147.45,0.0001]
[1740780664780,5.4245,147.48,147.45,0.0001]
[1740780668177,5.4238,147.5,147.45,0.0001]
[1740780671393,80.7,147.49,147.45,0.0001]
[1740780673402,86.1241,147.49,147.45,0.0001]
[1740780675875,80.7,147.48,147.45,0.0001]
[1740780676377,3.6592,147.52,147.45,0.0001]
[1740780676378,5.4238,147.5,147.45,0.0001]
[1740780677599,0.063,147.52,147.45,18.64974886]
[1740780677784,0.063,147.52,147.45,77.73751833]
[1740780678098,0.063,147.52,147.45,231.30141833]
[1740780679197,0.063,147.52,147.45,229.30141833]
[1740780680079,0.063,147.52,147.48,18.64964886]
[1740780681199,0.063,147.52,147.49,12.0883]
[1740780682502,0.063,147.52,147.5,18.64964886]
[1740780682726,0.063,147.52,147.5,20.17144886]
[1740780684609,0.063,147.52,147.5,25.59494886]
[1740780685288,0.063,147.52,147.49,6.6643]
[1740780685785,0.063,147.52,147.46,1.5698]
[1740780685981,0.063,147.52,147.46,6.9949]
[1740780686902,0.063,147.52,147.47,18.64964886]
[1740780688190,0.063,147.52,147.47,24.07444886]
[1740780689910,0.063,147.52,147.47,18.64964886]
[1740780690105,0.063,147.52,147.47,24.07434886]
[1740780693415,0.063,147.52,147.47,89.29861833]
[1740780693589,0.063,147.52,147.49,18.64964886]
[1740780693918,0.063,147.52,147.51,6.6118]
[1740780694089,0.063,147.52,147.51,58.27406947]
[1740780694595,0.063,147.52,147.51,63.69736947]
[1740780696803,0.063,147.52,147.51,58.27406947]
[1740780697015,0.063,147.52,147.51,63.69736947]
[1740780697201,0.063,147.52,147.51,82.34701833]
[1740780697601,0.063,147.52,147.51,223.91681833]
[1740780697802,0.063,147.55,147.54,42.64964886]
[1740780698113,0.063,147.55,147.54,233.73461241]
[1740780698314,0.063,147.55,147.54,232.31191833]
[1740780698698,0.063,147.55,147.54,237.73411833]
[1740780699317,0.063,147.55,147.54,235.73411833]
[1740780699618,0.063,147.55,147.54,237.73411833]
[1740780701804,0.063,147.55,147.54,241.07943526]
[1740780703520,0.063,147.55,147.54,261.51943526]
[1740780703706,0.063,147.55,147.54,241.07943526]
[1740780704416,0.063,147.59,147.58,20.0]
[1740780704603,0.063,147.59,147.58,70.31191833]
[1740780705220,0.063,147.65,147.59,20.64964886]
[1740780705421,0.063,147.65,147.59,210.31191833]
[1740780705827,0.063,147.65,147.61,18.64964886]
[1740780706123,0.063,147.65,147.63,18.64964886]
[1740780706622,0.063,147.67,147.66,38.64964886]
[1740780706803,0.063,147.68,147.67,18.64964886]
[1740780707119,0.063,147.73,147.69,38.64964886]
[1740780707305,0.063,147.73,147.69,228.31191833]
[1740780708522,0.063,147.73,147.69,233.72861833]
[1740780711698,0.063,147.73,147.69,228.31191833]
[1740780712321,0.063,147.73,147.69,90.31191833]
[1740780712502,0.063,147.73,147.72,20.0]
[1740780712708,0.063,147.73,147.72,71.66226947]
[1740780716432,0.063,147.77,147.76,20.0]
[1740780716612,0.063,147.8,147.77,18.64964886]
[1740780716806,0.063,147.8,147.77,76.69191833]
[1740780717324,0.063,147.8,147.79,20.0]
[1740780717518,0.063,147.85,147.81,18.64964886]
[1740780717715,1.5043,147.91,147.83,18.64964886]
[1740780717912,6.9132,147.91,147.83,70.31191833]
[1740780718111,6.9132,147.91,147.82,6.38]
[1740780718810,6.81872,147.91,147.82,6.38]
[1740780719130,1.40982,147.91,147.83,18.64964886]
[1740780720321,1.40982,147.91,147.83,213.88185211]
[1740780720522,1.40982,147.91,147.86,20.0]
[1740780720728,1.40982,147.91,147.87,18.64964886]
[1740780721428,87.51852,147.91,147.83,51.66226947]
[1740780721611,87.51852,147.91,147.83,57.07376947]
[1740780723019,87.51852,147.91,147.83,51.66226947]
[1740780724131,87.51852,147.91,147.83,57.07376947]
[1740780724339,1.40982,147.91,147.84,18.64964886]
[1740780724519,0.063,147.92,147.84,211.73175053]
[1740780724717,0.063,147.92,147.88,18.64964886]
[1740780724922,0.063,147.92,147.88,70.31191833]
[1740780725118,0.063,147.92,147.89,5.4094]
[1740780726334,0.063,147.92,147.9,20.64964886]
[1740780726638,0.13024947,147.96,147.95,38.64964886]
[1740780726819,0.13024947,147.96,147.95,90.31191833]
[1740780727128,0.13024947,147.96,147.95,97.71911833]
[1740780727519,0.13024947,147.96,147.95,118.15911833]
[1740780729735,11.6458,148.17,148.09,6.36]
[1740780730221,1.6643,148.2,148.1,18.64964886]
[1740780730547,5.397,148.23,148.13,20.0]
[1740780730729,5.3959,148.26,148.16,18.64964886]
[1740780732033,18.8857,148.26,148.16,18.64964886]
[1740780732243,20.8857,148.26,148.14,6.36]
[1740780732428,6.36,148.25,148.14,6.36]
[1740780732627,6.36,148.25,148.15,18.64964886]
[1740780733330,5.3966,148.24,148.15,18.64964886]
[1740780734539,18.8882,148.24,148.15,18.64964886]
[1740780735040,5.3966,148.24,148.15,18.64964886]
[1740780735537,5.3959,148.26,148.17,20.0]
[1740780735736,5.3959,148.26,148.18,25.00964886]
[1740780736239,7.0599,148.27,148.18,27.00964886]
[1740780736440,7.0599,148.27,148.18,25.00964886]
[1740780738925,20.5488,148.27,148.18,25.00964886]
[1740780740449,5.3956,148.27,148.18,37.15294057]
[1740780741547,127.4665,148.3,148.18,37.15294057]
[1740780741849,18.8818,148.29,148.18,37.15294057]
[1740780742938,18.8818,148.29,148.2,18.64964886]
[1740780743649,18.8818,148.29,148.18,9.68789714]
[1740780744148,18.8818,148.29,148.19,18.64964886]
[1740780744728,18.8818,148.29,148.18,33.736246]
[1740780744945,18.8818,148.29,148.19,18.64964886]
[1740780745231,45.8559,148.29,148.18,29.68789714]
[1740780745542,20.0,148.26,148.18,6.36]
[1740780745734,80.7,148.28,148.18,6.36]
[1740780745932,6.36,148.27,148.19,18.64964886]
[1740780747046,18.8857,148.26,148.19,18.64964886]
[1740780747631,18.8857,148.26,148.16,3.45505947]
[1740780748035,18.8857,148.26,148.17,18.64964886]
[1740780748227,18.8857,148.26,148.16,22.10470833]
[1740780748433,1.6513,148.25,148.17,18.64964886]
[1740780749032,5.3966,148.24,148.17,18.64964886]
[1740780750855,18.8882,148.24,148.17,18.64964886]
[1740780751152,18.8882,148.24,148.16,3.45505947]
[1740780751153,18.8882,148.24,148.16,22.10470833]
[1740780752853,6.0419,148.23,148.15,6.34]
[1740780753034,6.0419,148.23,148.11,6.1247]
[1740780753235,86.7419,148.23,148.12,6.34]
[1740780753444,1.6513,148.18,148.09,6.34]
[1740780753639,1.6513,148.18,148.1,18.64964886]
[1740780754353,21.6513,148.18,148.09,6.34]
[1740780754655,1.6513,148.18,148.1,18.64964886]
[1740780755036,5.3992,148.17,148.1,24.05124886]
[1740780756145,5.3992,148.17,148.1,18.64964886]
[1740780757546,18.8972,148.17,148.08,18.64964886]
[1740780758349,6.0419,148.16,148.08,18.64964886]
[1740780759850,5.3999,148.15,148.08,18.64964886]
[1740780760879,5.3999,148.15,148.08,24.05204886]
[1740780761075,5.3999,148.15,148.08,18.64964886]
[1740780761562,18.8997,148.15,148.06,0.063]
[1740780761746,1.554,148.14,148.06,0.063]
[1740780762066,5.4006,148.13,148.06,0.063]
[1740780762270,18.9022,148.13,148.06,0.063]
[1740780762476,80.7,148.12,148.06,0.063]
[1740780764166,6.1486,148.1,148.06,0.063]
[1740780764567,1.554,148.09,148.06,0.063]
[1740780766048,86.1024,148.08,148.06,0.063]
[1740780768473,80.7,148.07,148.06,0.063]
[1740780769494,1.554,148.09,148.06,0.063]
[1740780769651,80.7,148.11,148.06,0.063]
[1740780769851,8.1205,148.14,148.06,0.063]
[1740780770288,8.1205,148.14,148.06,51.72526947]
[1740780771391,13.5207,148.14,148.08,18.64964886]
[1740780771581,13.5507,148.14,148.08,18.64964886]
[1740780772678,13.5507,148.14,148.07,5.4027]
[1740780776878,0.03,148.14,148.08,24.05174886]
[1740780777177,0.03,148.14,148.08,37.55794886]
[1740780777472,0.03,148.14,148.08,5.4021]
[1740780777680,0.03,148.14,148.09,18.64964886]
[1740780778884,25.4303,148.14,148.08,24.05174886]
[1740780780263,25.4303,148.14,148.08,18.64964886]
[1740780780463,25.4303,148.14,148.06,0.063]
[1740780780664,38.931,148.14,148.06,0.063]
[1740780781879,20.0,148.1,148.06,0.063]
[1740780782260,5.4024,148.08,148.06,0.063]
[1740780782792,20.0,148.09,148.06,0.063]
[1740780783296,0.03,148.14,148.12,20.0]
[1740780783599,7.0366,148.25,148.13,24.98964886]
[1740780783772,1.6401,148.25,148.13,28.40668719]
[1740780783971,1.6401,148.25,148.15,18.64964886]
[1740780784370,20.0,148.23,148.17,18.64964886]
[1740780784773,80.73,148.29,148.17,18.64964886]
[1740780784977,80.73,148.29,148.19,18.64964886]
[1740780785869,20.0,148.26,148.19,18.64964886]
[1740780786074,80.73,148.29,148.19,18.64964886]
[1740780786466,20.0,148.26,148.21,18.64964886]
[1740780786670,80.73,148.29,148.21,18.64964886]
[1740780786892,20.0,148.26,148.21,18.64964886]
[1740780787477,20.0,148.26,148.19,24.04804886]
[1740780787979,20.0,148.25,148.19,24.04804886]
[1740780788165,20.03,148.24,148.18,6.34]
[1740780788372,0.03,148.24,148.18,11.7388]
[1740780788571,0.03,148.24,148.19,18.64964886]
[1740780789691,0.03,148.24,148.21,18.64964886]
[1740780791485,0.03,148.24,148.21,22.08529233]
[1740780791796,0.03,148.24,148.22,5.3973]
[1740780792481,0.03,148.24,148.23,18.64964886]
[1740780792680,0.0001,148.24,148.23,24.98964886]
[1740780792886,0.0001,148.24,148.23,26.98964886]
[1740780793089,0.0001,148.24,148.23,28.40553639]
[1740780793484,0.03,148.29,148.27,5.3955]
[1740780793685,0.03,148.29,148.28,18.64964886]
[1740780793888,0.03,148.29,148.28,24.98964886]
[1740780797408,0.03,148.29,148.25,3.40187592]
[1740780798601,0.03,148.29,148.24,6.9707]
[1740780798805,0.03,148.29,148.24,13.3107]
[1740780799107,0.03,148.29,148.25,18.64964886]
[1740780801398,0.03,148.29,148.24,18.64964886]
[1740780806118,20.0,148.27,148.21,3.43564347]
[1740780806295,80.7,148.28,148.18,63.16226947]
[1740780806610,20.0,148.25,148.24,0.063]
[1740780806801,80.7,148.26,148.24,0.063]
[1740780808309,6.9571,148.25,148.24,0.063]
[1740780810306,13.0306,148.25,148.24,0.063]
[1740780811004,33.0306,148.25,148.24,0.063]
[1740780811198,13.0306,148.25,148.24,0.063]
[1740780811913,33.0306,148.25,148.24,0.063]
[1740780815104,26.9571,148.25,148.24,0.063]
[1740780818198,26.9871,148.25,148.24,0.063]
[1740780828315,22.0,148.22,148.12,7.6228]
[1740780828623,6.34,148.21,148.12,6.1013]
[1740780828821,6.34,148.21,148.13,18.64964886]
[1740780829123,82.7806,148.25,148.13,18.64964886]
[1740780829317,20.0,148.22,148.13,70.31191833]
[1740780830018,20.0,148.21,148.13,70.31191833]
[1740780830222,18.8933,148.2,148.13,70.31191833]
[1740780832228,18.8933,148.2,148.13,51.66226947]
[1740780833002,20.0,148.17,148.1,6.34]
[1740780833208,100.7,148.16,148.09,53.23596947]
[1740780833538,100.7,148.16,148.1,18.64964886]
[1740780833715,80.7,148.16,148.1,18.64964886]
[1740780834411,86.0998,148.16,148.1,18.64964886]
[1740780834607,86.0998,148.16,148.09,53.23596947]
[1740780835140,5.3993,148.17,148.1,18.64964886]
[1740780835630,86.0988,148.18,148.1,18.64964886]
[1740780836539,86.0988,148.18,148.1,24.05114886]
[1740780836744,86.00432,148.18,148.1,24.05114886]
[1740780838139,86.00432,148.18,148.1,18.64964886]
[1740780840717,86.00432,148.18,148.1,70.31191833]
[1740780843051,99.50132,148.18,148.1,70.31191833]
[1740780845743,126.49542,148.18,148.1,51.66226947]
[1740780845927,99.50132,148.18,148.1,51.66226947]
[1740780846122,99.50132,148.18,148.11,18.64964886]
[1740780849055,86.00432,148.18,148.1,51.66226947]
[1740780849255,5.3988,148.18,148.12,18.64964886]
[1740780849435,18.8958,148.18,148.12,18.64964886]
[1740780850749,99.50132,148.18,148.11,51.66226947]
[1740780850930,1.5799,148.23,148.13,6.3937]
[1740780851131,80.60552,148.22,148.13,58.05596947]
[1740780851332,1.5799,148.23,148.14,18.64964886]
[1740780853052,1.5799,148.23,148.16,18.64964886]
[1740780853237,1.5799,148.23,148.16,70.31191833]
[1740780853855,6.9769,148.23,148.16,70.31191833]
[1740780854340,1.5799,148.23,148.16,70.31191833]
[1740780854943,1.6099,148.23,148.16,75.71121833]
[1740780855333,1.6099,148.23,148.16,70.31191833]
[1740780855758,7.0069,148.23,148.16,70.31191833]
[1740780856574,20.0,148.21,148.16,51.66226947]
[1740780856734,1.6099,148.23,148.17,18.64964886]
[1740780858038,7.0069,148.23,148.17,18.64964886]
[1740780862543,7.0069,148.23,148.17,24.04874886]
[1740780864852,7.0069,148.23,148.16,51.66226947]
[1740780865662,20.4994,148.23,148.16,51.66226947]
[1740780866363,20.4994,148.23,148.16,51.72526947]
[1740780869560,20.4994,148.23,148.16,0.063]
[1740780869561,5.3977,148.21,148.16,0.063]
[1740780873476,86.00382,148.2,148.16,0.063]
[1740780881765,20.0,148.17,148.16,0.063]
[1740780882075,80.60552,148.18,148.16,0.063]
[1740780883555,5.3992,148.17,148.16,0.063]
[1740780885372,25.3992,148.17,148.16,0.063]
[1740780885570,31.7192,148.17,148.16,0.063]
[1740780886655,45.2172,148.17,148.09,0.063]
[1740780886861,80.7,148.16,148.09,0.063]
[1740780887762,5.3999,148.15,148.09,0.063]
[1740780889393,161.42964886,148.21,148.09,0.063]
[1740780889394,194.49,148.21,148.14,18.64964886]
[1740780889895,194.49,148.21,148.14,24.04984886]
[1740780890262,0.03,148.17,148.14,24.04984886]
[1740780891071,0.03,148.17,148.16,20.0]
[1740780891381,0.03,148.17,148.16,21.5237]
[1740780891867,0.03,148.17,148.16,26.9232]
[1740780894382,0.03,148.17,148.16,78.58546947]
[1740780896486,0.03,148.21,148.17,6.3081]
[1740780896785,0.03,148.21,148.17,87.3081]
[1740780898586,0.03,148.21,148.18,5.3988]
[1740780898798,0.03,148.21,148.17,87.3081]
[1740780898983,0.03,148.21,148.17,92.7072]
[1740780900264,0.03,148.21,148.19,5.3984]
[1740780900668,0.03,148.21,148.18,18.64964886]
[1740780901071,0.03,148.21,148.17,92.7072]
[1740780901790,0.03,148.21,148.18,18.64964886]
[1740780902181,0.03,148.21,148.2,20.0]
[1740780902377,0.03,148.21,148.2,106.3981]
[1740780902913,0.03,148.21,148.2,131.36774886]
[1740780903109,0.03,148.23,148.22,6.387]
[1740780903307,0.0001,148.25,148.24,38.64964886]
[1740780903610,0.0001,148.25,148.24,277.97964886]
[1740780903899,0.0001,148.25,148.24,257.64964886]
[1740780904280,0.0001,148.25,148.24,263.04624886]
[1740780904879,0.03,148.29,148.25,18.64964886]
[1740780905076,0.03,148.29,148.28,38.64964886]
[1740780905275,0.03,148.29,148.28,119.64964886]
[1740780905489,0.03,148.29,148.28,99.64964886]
[1740780905793,0.03,148.29,148.26,6.32]
[1740780907580,0.03,148.29,148.24,81.0]
[1740780909473,20.0,148.25,148.18,6.6325]
[1740780909678,20.0,148.24,148.16,81.0]
[1740780910079,80.7,148.23,148.14,6.32]
[1740780910388,20.0,148.2,148.14,6.32]
[1740780910691,5.3984,148.19,148.13,81.0]
[1740780910877,20.0,148.2,148.13,81.0]
[1740780911077,80.7,148.23,148.14,18.64964886]
[1740780911283,20.0,148.22,148.14,99.64964886]
[1740780911686,20.0,148.22,148.14,81.0]
[1740780912679,5.3977,148.21,148.14,81.0]
[1740780912886,5.3977,148.21,148.15,18.64964886]
[1740780913681,5.3977,148.21,148.14,81.0]
[1740780914687,5.3977,148.21,148.11,6.32]
[1740780914688,80.7,148.2,148.12,18.64964886]
[1740780914883,86.0984,148.19,148.11,81.0]
[1740780915084,20.0,148.16,148.11,81.0]
[1740780915290,20.0,148.16,148.15,0.063]
[1740780915802,8.32,148.17,148.15,0.063]
[1740780916001,8.32,148.17,148.09,0.063]
[1740780916002,20.0,148.14,148.09,0.063]
[1740780916895,20.0,148.1,148.09,0.063]
[1740780918507,42.64964886,148.1,148.09,0.063]
[1740780918693,42.64964886,148.1,148.06,0.063]
[1740780918694,4.0,148.09,148.06,0.063]
[1740780918888,7.4024,148.08,148.06,0.063]
[1740780919201,20.0,148.04,148.0,0.063]
[1740780920198,22.0,148.04,148.0,0.063]
[1740780920514,4.0,148.03,148.0,0.063]
[1740780920726,6.32,148.02,148.0,0.063]
[1740780921011,5.405,148.01,148.0,0.063]
[1740780921586,9.0214,148.01,148.0,0.063]
[1740780921795,141.47104886,148.01,148.0,0.063]
[1740780922503,20.0,147.97,147.94,0.063]
[1740780922693,28.32,147.97,147.94,0.063]
[1740780922893,26.32,147.97,147.94,0.063]
[1740780923107,31.7265,147.97,147.94,0.063]
[1740780926527,33.7265,147.97,147.94,0.063]
[1740780926714,2.0,147.96,147.94,0.063]
[1740780927025,22.64964886,147.96,147.94,0.063]
[1740780927516,20.0,147.92,147.91,0.063]
[1740780927814,26.32,147.92,147.91,0.063]
[1740780928309,48.96964886,147.92,147.91,0.063]
[1740780928510,54.37794886,147.92,147.91,0.063]
[1740780929407,20.0,147.87,147.8,6.3144]
[1740780929990,20.0,147.85,147.8,0.063]
[1740780930626,5.4112,147.84,147.8,0.063]
[1740780931028,20.0,147.81,147.8,0.063]
[1740780931321,80.7,147.84,147.8,0.063]
[1740780932230,20.0,147.81,147.8,0.063]
[1740780932532,86.1127,147.8,147.72,6.2514]
[1740780932897,80.7,147.79,147.72,6.2514]
[1740780934017,80.7,147.79,147.73,18.64964886]
[1740780934208,100.7,147.81,147.73,18.64964886]
[1740780934609,106.1124,147.81,147.73,18.64964886]
[1740780934810,106.1124,147.81,147.72,87.2514]
[1740780935005,80.7,147.8,147.72,6.2514]
[1740780935207,80.7,147.79,147.7,18.64964886]
[1740780935817,5.4134,147.78,147.69,1.5284]
[1740780936027,86.1134,147.78,147.69,6.945]
[1740780936610,86.1134,147.78,147.69,1.5284]
[1740780936821,80.7,147.77,147.68,24.83784886]
[1740780937407,80.7,147.77,147.68,30.25494886]
[1740780938517,5.4141,147.76,147.68,24.83784886]
[1740780938816,80.7,147.75,147.68,24.83784886]
[1740780939209,80.7,147.74,147.68,0.063]
[1740780939409,80.7,147.73,147.68,0.063]
[1740780939610,80.7,147.72,147.68,0.063]
[1740780939810,80.7,147.75,147.68,0.063]
[1740780940826,5.4149,147.74,147.68,0.063]
[1740780941010,82.7,147.73,147.68,0.063]
[1740780941205,80.7,147.72,147.68,0.063]
[1740780942713,86.1158,147.72,147.68,0.063]
[1740780943622,80.7,147.72,147.68,0.063]
[1740780944021,86.1145,147.75,147.68,0.063]
[1740780944232,80.7,147.75,147.69,20.0]
[1740780944620,80.7,147.75,147.7,5.4163]
[1740780944828,114.02,147.76,147.71,18.64964886]
[1740780945030,80.7,147.79,147.71,105.98964886]
[1740780945208,5.4119,147.82,147.72,6.4733]
[1740780945409,101.6418,147.82,147.72,6.4733]
[1740780946136,82.7,147.81,147.72,6.4733]
[1740780946934,5.4127,147.8,147.72,6.4733]
[1740780947516,5.4127,147.8,147.73,18.64964886]
[1740780947713,80.7,147.83,147.73,99.64964886]
[1740780948731,80.7,147.83,147.75,18.64964886]
[1740780948918,80.7,147.83,147.75,99.64964886]
[1740780949428,80.7,147.82,147.72,11.8886]
[1740780949614,80.7,147.81,147.73,18.64964886]
[1740780950116,6.34,147.82,147.73,99.64964886]
[1740780950446,5.4116,147.83,147.73,99.64964886]
[1740780950636,0.03,147.84,147.73,239.64964886]
[1740780950934,0.03,147.84,147.75,18.64964886]
[1740780951117,0.03,147.84,147.77,18.64964886]
[1740780951719,0.03,147.84,147.79,18.64964886]
[1740780951919,0.03,147.84,147.79,99.64964886]
[1740780952941,0.03,147.84,147.8,5.4127]
[1740780955015,0.03,147.84,147.82,1.5883]
[1740780955238,0.03,147.84,147.83,18.64964886]
[1740780955433,0.03,147.84,147.83,25.12294886]
[1740780956735,0.03,147.84,147.83,30.53454886]
[1740780957346,0.03,147.84,147.83,6.4733]
[1740780957534,0.03,147.84,147.81,6.34]
[1740780957961,0.03,147.84,147.79,25.12294886]
[1740780958551,0.03,147.84,147.79,6.4733]
[1740780958843,5.4412,147.84,147.75,18.2277]
[1740780959038,5.4412,147.84,147.75,99.2277]
[1740780959266,80.7,147.83,147.76,18.64964886]
[1740780959954,80.7,147.82,147.75,6.4733]
[1740780960649,80.7,147.81,147.75,6.4733]
[1740780960822,80.7,147.83,147.76,18.64964886]
[1740780961027,86.1117,147.83,147.76,18.64964886]
[1740780962225,86.1117,147.83,147.75,6.4733]
[1740780962429,80.7,147.82,147.74,6.34]
[1740780962829,5.4123,147.81,147.74,6.34]
[1740780963149,80.7,147.8,147.74,6.34]
[1740780965649,86.1127,147.8,147.73,5.4151]
[1740780966445,80.7,147.79,147.72,18.71264886]
[1740780966745,80.7,147.79,147.72,0.063]
[1740780966944,80.7,147.78,147.72,0.063]
[1740780967726,86.1138,147.78,147.72,0.063]
[1740780968738,80.7,147.77,147.72,0.063]
[1740780969661,80.7,147.76,147.72,0.063]
[1740780969945,80.7,147.75,147.72,0.063]
[1740780970335,80.7,147.74,147.72,0.063]
[1740780971655,5.4152,147.73,147.72,0.063]
[1740780971857,86.1152,147.73,147.72,0.063]
[1740780974054,3.5383,147.76,147.72,0.063]
[1740780974246,20.0,147.73,147.72,0.063]
[1740780975254,5.4145,147.75,147.72,0.063]
[1740780975436,13.5344,147.78,147.72,0.063]
[1740780975632,5.4138,147.77,147.72,0.063]
[1740780976049,5.413,147.79,147.72,0.063]
[1740780976455,1.5383,147.8,147.72,0.063]
[1740780976639,121.9483,147.84,147.73,18.64964886]
[1740780976956,20.0,147.81,147.73,99.64964886]
[1740780977535,125.8213,147.84,147.73,99.64964886]
[1740780977742,119.4813,147.84,147.73,99.64964886]
[1740780977944,20.0,147.81,147.73,99.64964886]
[1740780978147,5.4127,147.8,147.73,24.06474886]
[1740780978361,86.1127,147.8,147.73,24.06474886]
[1740780979858,80.7,147.79,147.72,5.4786]
[1740780981560,86.113,147.79,147.72,5.4786]
[1740780982461,80.7,147.82,147.73,37.60284886]
[1740780982653,80.7,147.82,147.75,18.64964886]
[1740780982859,86.112,147.82,147.75,18.64964886]
[1740780983054,86.112,147.82,147.74,6.34]
[1740780983354,114.07,147.84,147.75,18.64964886]
[1740780983655,114.07,147.84,147.77,18.64964886]
[1740780983863,119.4812,147.84,147.77,18.64964886]
[1740780984663,20.0,147.8,147.72,6.275]
[1740780984959,80.7,147.79,147.72,11.6905]
[1740780985169,80.7,147.79,147.72,6.275]
[1740780985958,80.7,147.79,147.72,11.6906]
[1740780986263,80.7,147.79,147.73,18.64964886]
[1740780986761,80.7,147.83,147.75,18.64964886]
[1740780986968,80.7,147.82,147.75,18.64964886]
[1740780987560,114.07,147.84,147.75,105.96964886]
[1740780988263,119.4813,147.84,147.75,105.96964886]
[1740780988648,119.4813,147.84,147.77,18.64964886]
[1740780989259,114.07,147.84,147.77,18.64964886]
[1740780990045,80.7,147.83,147.75,87.32]
[1740780990280,20.0,147.8,147.72,87.275]
[1740780990463,80.7,147.82,147.73,6.32]
[1740780990656,18.9431,147.81,147.74,18.64964886]
[1740780991268,5.4123,147.81,147.74,18.64964886]
[1740780991858,86.112,147.82,147.74,18.64964886]
[1740780992450,99.6419,147.82,147.74,18.64964886]
[1740780992851,99.6419,147.82,147.74,24.06444886]
[1740780994279,99.6419,147.82,147.74,18.64964886]
[1740780995277,80.7,147.81,147.74,24.06444886]
[1740780995769,80.7,147.81,147.75,18.64964886]
[1740780995966,5.412,147.82,147.75,18.64964886]
[1740780996158,20.0,147.79,147.74,81.0]
[1740780997171,20.0,147.78,147.73,6.32]
[1740780998171,25.4135,147.78,147.73,6.32]
[1740780998373,5.4135,147.78,147.73,6.32]
[1740780998556,80.7,147.81,147.73,111.38474886]
[1740780998750,80.7,147.81,147.74,0.063]
[1740780999269,80.73,147.81,147.74,18.71264886]
[1740780999855,0.03,147.81,147.74,99.71264886]
[1740781000470,0.03,147.81,147.76,18.64964886]
[1740781000652,0.03,147.81,147.76,99.64964886]
[1740781000976,0.03,147.81,147.76,81.0]
[1740781001178,0.03,147.81,147.77,18.64964886]
[1740781001377,0.03,147.81,147.76,81.0]
[1740781001579,0.03,147.81,147.77,24.06344886]
[1740781002583,0.03,147.81,147.77,18.64964886]
[1740781002771,0.03,147.81,147.76,86.4141]
[1740781003480,0.03,147.81,147.77,18.64964886]
[1740781010290,0.03,147.81,147.77,24.06344886]
[1740781011268,0.03,147.81,147.77,24.12644886]